[Event "VII Open Internacional Quart de Poblet"]
[Site "Quart de Poblet, Spain"]
[Date "2019.08.08"]
[Round "5.6"]
[White "Gonzalvez Tamarit, Ruben"]
[Black "Davtyan, David Arm"]
[Result "0-1"]
[TimeControl "90m +30s por jugada"]
[WhiteFideId "32041764"]
[WhiteElo "2087"]
[BlackElo "2249"]

1. e4 {[%clk 01:30:56]} {[%emt 00:00:30]} c5 {[%clk 01:30:54]} {[%emt
00:00:04]} 2. Nc3 {[%clk 01:31:22]} Nc6 {[%clk 01:31:11]} {[%emt 00:00:03]} 3.
Bb5 {[%clk 01:31:45]} g6 {[%clk 01:31:14]} {[%emt 00:00:24]} 4. Bxc6 {[%clk
01:29:31]} {[%emt 00:02:49]} dxc6 {[%clk 01:31:43]} {[%emt 00:00:04]} 5. Nge2
{[%clk 01:26:46]} {[%emt 00:03:09]} Bg7 {[%clk 01:31:56]} {[%emt 00:00:15]} 6.
d3 {[%clk 01:26:36]} {[%emt 00:01:12]} Nf6 {[%clk 01:29:10]} {[%emt 00:02:43]}
7. h3 {[%clk 01:23:59]} {[%emt 00:03:07]} Nd7 {[%clk 01:28:58]} {[%emt
00:01:05]} 8. Be3 {[%clk 01:22:24]} {[%emt 00:01:41]} e5 {[%clk 01:28:52]}
{[%emt 00:00:37]} 9. Qd2 {[%clk 01:20:34]} {[%emt 00:02:20]} h6 {[%clk
01:29:12]} {[%emt 00:00:10]} 10. O-O {[%clk 01:20:10]} {[%emt 00:00:52]} b6
{[%clk 01:24:18]} {[%emt 00:05:31]} 11. a4 {[%clk 01:16:14]} {[%emt 00:04:23]}
a5 {[%clk 01:24:22]} {[%emt 00:00:30]} 12. f4 {[%clk 01:10:07]} {[%emt
00:06:29]} exf4 {[%clk 01:23:05]} {[%emt 00:01:47]} 13. Bxf4 {[%clk 01:06:56]}
{[%emt 00:03:42]} Ne5 {[%clk 01:21:45]} {[%emt 00:01:51]} 14. Rf2 {[%clk
01:05:07]} {[%emt 00:02:25]} Be6 {[%clk 01:20:22]} {[%emt 00:01:51]} 15. Raf1
{[%clk 01:03:17]} {[%emt 00:02:22]} Qd7 {[%clk 01:18:54]} {[%emt 00:02:16]} 16.
b3 {[%clk 00:53:12]} {[%emt 00:10:11]} O-O-O {[%clk 01:16:47]} {[%emt
00:03:07]} 17. Bh2 {[%clk 00:48:34]} {[%emt 00:04:37]} g5 {[%clk 01:12:27]}
{[%emt 00:04:49]} 18. Ng3 {[%clk 00:45:19]} {[%emt 00:03:45]} Ng6 {[%clk
00:45:21]} {[%emt 00:27:37]} 19. Nce2 {[%clk 00:43:43]} {[%emt 00:02:06]} Be5
{[%clk 00:38:05]} {[%emt 00:07:45]} 20. Nf5 {[%clk 00:39:07]} {[%emt 00:05:09]}
Qc7 {[%clk 00:37:37]} {[%emt 00:00:56]} 21. Bxe5 {[%clk 00:38:47]} {[%emt
00:00:49]} Qxe5 {[%clk 00:37:57]} {[%emt 00:00:16]} 22. Qc3 {[%clk 00:36:43]}
{[%emt 00:02:29]} Qxc3 {[%clk 00:32:52]} {[%emt 00:05:38]} 23. Nxc3 {[%clk
00:37:02]} {[%emt 00:00:11]} Ne5 {[%clk 00:30:37]} {[%emt 00:02:55]} 24. Ng7
{[%clk 00:29:39]} {[%emt 00:07:38]} Kd7 {[%clk 00:29:31]} {[%emt 00:02:14]} 25.
Ne2 {[%clk 00:29:29]} {[%emt 00:00:08]} Rdg8 {[%clk 00:26:43]} {[%emt
00:03:13]} 26. Nh5 {[%clk 00:25:23]} {[%emt 00:04:38]} Rb8 {[%clk 00:26:49]}
{[%emt 00:01:13]} 27. d4 {[%clk 00:23:25]} {[%emt 00:01:54]} cxd4 {[%clk
00:25:40]} {[%emt 00:01:20]} 28. Nxd4 {[%clk 00:23:49]} {[%emt 00:00:34]} c5
{[%clk 00:24:49]} {[%emt 00:00:56]} 29. Nxe6 {[%clk 00:22:58]} {[%emt
00:01:33]} fxe6 {[%clk 00:25:15]} 30. Rf6 {[%clk 00:20:32]} {[%emt 00:02:46]}
Rbc8 {[%clk 00:24:23]} {[%emt 00:01:22]} 31. c4 {[%clk 00:16:43]} {[%emt
00:04:21]} Ke7 {[%clk 00:24:07]} {[%emt 00:00:43]} 32. Ng7 {[%clk 00:15:46]}
{[%emt 00:01:28]} Rc6 {[%clk 00:24:07]} {[%emt 00:00:42]} 33. Nh5 {[%clk
00:15:38]} {[%emt 00:00:26]} Rd6 {[%clk 00:24:16]} {[%emt 00:00:39]} 34. Ng7
{[%clk 00:14:57]} {[%emt 00:00:53]} Rh7 {[%clk 00:22:45]} {[%emt 00:02:01]} 35.
Nh5 {[%clk 00:11:45]} {[%emt 00:03:41]} Rd3 {[%clk 00:22:28]} {[%emt 00:00:48]}
36. Rf8 {[%clk 00:11:31]} {[%emt 00:00:45]} Rf7 {[%clk 00:22:21]} {[%emt
00:00:37]} 37. R8xf7+ {[%clk 00:08:47]} {[%emt 00:03:16]} Nxf7 {[%clk
00:22:37]} {[%emt 00:00:12]} 38. Nf6 {[%clk 00:08:27]} {[%emt 00:00:51]} Ne5
{[%clk 00:20:47]} {[%emt 00:02:56]} 39. Ng8+ {[%clk 00:08:13]} {[%emt
00:00:08]} Kd6 {[%clk 00:20:57]} {[%emt 00:00:18]} 40. Nxh6 {[%clk 00:08:03]}
{[%emt 00:00:46]} Rxb3 {[%clk 00:21:08]} {[%emt 00:00:13]} 41. Rd1+ {[%clk
00:03:45]} {[%emt 00:04:48]} Kc6 {[%clk 00:21:23]} {[%emt 00:00:34]} 42. Rd8
{[%clk 00:03:30]} {[%emt 00:00:28]} Nxc4 {[%clk 00:21:06]} {[%emt 00:00:50]} 43.
Nf7 {[%clk 00:03:29]} {[%emt 00:00:25]} b5 {[%clk 00:18:44]} {[%emt 00:02:53]}
44. axb5+ {[%clk 00:03:32]} {[%emt 00:00:27]} Kxb5 {[%clk 00:18:47]} {[%emt
00:00:27]} 45. Nxg5 {[%clk 00:02:55]} {[%emt 00:01:31]} a4 {[%clk 00:19:13]}
{[%emt 00:00:03]} 46. Nxe6 {[%clk 00:02:44]} {[%emt 00:00:24]} a3 {[%clk
00:19:19]} {[%emt 00:00:20]} 47. Rb8+ {[%clk 00:01:56]} {[%emt 00:01:27]} Nb6
{[%clk 00:19:38]} {[%emt 00:00:04]} 48. Nc7+ {[%clk 00:02:14]} {[%emt
00:00:08]} Kc6 {[%clk 00:19:44]} {[%emt 00:00:23]} 49. Nd5 {[%clk 00:01:33]}
{[%emt 00:01:14]} a2 {[%clk 00:20:03]} {[%emt 00:00:12]} 0-1

[Event "VII Open Internacional Quart de Poblet"]
[Site "Quart de Poblet, Spain"]
[Date "2019.08.08"]
[Round "5.7"]
[White "Carbonell Sancho, Marc"]
[Black "Martinez Villena, David"]
[Result "0-1"]
[TimeControl "90m +30s por jugada"]
[WhiteFideId "32029969"]
[BlackFideId "2284022"]
[WhiteElo "2187"]
[BlackElo "2006"]

1. e4 {[%clk 01:30:58]} {[%emt 00:00:14]} c5 {[%clk 01:30:33]} {[%emt
00:00:50]} 2. Nf3 {[%clk 01:31:22]} {[%emt 00:00:06]} d6 {[%clk 01:30:56]}
{[%emt 00:00:08]} 3. d4 {[%clk 01:31:47]} {[%emt 00:00:03]} cxd4 {[%clk
01:31:15]} {[%emt 00:00:32]} 4. Nxd4 {[%clk 01:32:11]} {[%emt 00:00:04]} Nf6
{[%clk 01:30:52]} {[%emt 00:00:30]} 5. Nc3 {[%clk 01:32:35]} {[%emt 00:00:31]}
a6 {[%clk 01:31:16]} {[%emt 00:00:04]} 6. Bc4 {[%clk 01:32:54]} e6 {[%clk
01:31:31]} {[%emt 00:00:05]} 7. Bb3 {[%clk 01:32:54]} {[%emt 00:00:40]} Nbd7
{[%clk 01:31:31]} {[%emt 00:00:28]} 8. Bg5 {[%clk 01:32:54]} {[%emt 00:00:19]}
Nc5 {[%clk 01:30:56]} {[%emt 00:01:05]} 9. O-O {[%clk 01:33:08]} {[%emt
00:00:26]} Be7 {[%clk 01:30:09]} {[%emt 00:01:12]} 10. Re1 {[%clk 01:33:31]}
{[%emt 00:00:04]} h6 {[%clk 01:29:33]} {[%emt 00:01:03]} 11. Bh4 {[%clk
01:33:24]} {[%emt 00:00:39]} Nxb3 {[%clk 01:28:06]} {[%emt 00:01:57]} 12. axb3
{[%clk 01:25:55]} {[%emt 00:07:57]} g5 {[%clk 01:27:36]} {[%emt 00:00:59]} 13.
Bg3 {[%clk 01:26:23]} {[%emt 00:00:08]} e5 {[%clk 01:27:58]} {[%emt 00:00:14]}
14. Nde2 {[%clk 01:26:46]} {[%emt 00:00:03]} h5 {[%clk 01:22:18]} {[%emt
00:06:03]} 15. f3 {[%clk 01:23:47]} {[%emt 00:03:39]} h4 {[%clk 01:20:30]}
{[%emt 00:02:11]} 16. Bf2 {[%clk 01:24:14]} {[%emt 00:00:22]} g4 {[%clk
01:19:58]} {[%emt 00:00:39]} 17. f4 {[%clk 01:18:08]} {[%emt 00:06:37]} g3
{[%clk 01:16:56]} {[%emt 00:03:32]} 18. hxg3 {[%clk 01:18:04]} {[%emt
00:00:32]} h3 {[%clk 01:17:18]} {[%emt 00:00:38]} 19. f5 {[%clk 01:12:24]}
{[%emt 00:05:43]} Ng4 {[%clk 00:57:01]} {[%emt 00:20:49]} 20. gxh3 {[%clk
01:11:40]} {[%emt 00:01:11]} Rxh3 {[%clk 00:56:58]} {[%emt 00:00:32]} 21. Rf1
{[%clk 01:00:27]} {[%emt 00:11:44]} Kd7 {[%clk 00:29:43]} {[%emt 00:27:44]} 22.
Qd3 {[%clk 00:44:32]} {[%emt 00:16:26]} Qh8 {[%clk 00:23:34]} {[%emt 00:07:04]}
23. Qf3 {[%clk 00:44:48]} {[%emt 00:00:04]} Nh2 {[%clk 00:21:03]} {[%emt
00:02:49]} 24. Qg2 {[%clk 00:45:16]} {[%emt 00:00:03]} b5 {[%clk 00:15:24]}
{[%emt 00:06:06]} 25. Nd5 {[%clk 00:40:18]} {[%emt 00:05:27]} Bd8 {[%clk
00:07:44]} {[%emt 00:08:35]} 26. Rad1 {[%clk 00:18:38]} {[%emt 00:21:45]} Bb7
{[%clk 00:07:45]} {[%emt 00:00:31]} 27. Nec3 {[%clk 00:17:42]} {[%emt
00:01:25]} Bc7 {[%clk 00:02:46]} {[%emt 00:05:28]} 28. b4 {[%clk 00:16:44]}
{[%emt 00:01:28]} Ng4 {[%clk 00:01:57]} {[%emt 00:01:24]} 29. Ne3 {[%clk
00:09:50]} {[%emt 00:07:18]} Nxe3 {[%clk 00:01:01]} {[%emt 00:01:26]} 30. Bxe3
{[%clk 00:10:18]} {[%emt 00:00:35]} Rg8 {[%clk 00:01:23]} 31. Rf3 {[%clk
00:08:32]} {[%emt 00:02:10]} Qh5 {[%clk 00:01:17]} {[%emt 00:00:49]} 32. Rd2
{[%clk 00:02:58]} {[%emt 00:05:32]} Qg4 {[%clk 00:01:13]} {[%emt 00:00:33]} 33.
Bf2 {[%clk 00:01:50]} {[%emt 00:01:38]} Rgh8 {[%clk 00:01:25]} {[%emt
00:00:18]} 34. Re3 {[%clk 00:00:43]} {[%emt 00:01:40]} Qh5 {[%clk 00:01:15]}
{[%emt 00:00:38]} 35. Kf1 {[%clk 00:00:39]} {[%emt 00:00:33]} Rh1+ {[%clk
00:01:19]} {[%emt 00:00:26]} 36. Bg1 {[%clk 00:01:08]} Bb6 {[%clk 00:01:18]}
{[%emt 00:00:32]} 37. Rde2 {[%clk 00:00:33]} {[%emt 00:01:15]} Bxe3 {[%clk
00:00:55]} {[%emt 00:00:46]} 38. Rxe3 {[%clk 00:01:01]} {[%emt 00:00:11]} Qg4
{[%clk 00:00:53]} {[%emt 00:00:20]} 39. Kf2 {[%clk 00:00:51]} {[%emt 00:00:40]}
R8h7 {[%clk 00:00:45]} {[%emt 00:00:40]} 40. Rd3 {[%clk 00:00:50]} {[%emt
00:00:44]} Ke7 {[%clk 00:00:37]} {[%emt 00:00:25]} 41. Re3 {[%clk 00:00:47]}
{[%emt 00:00:31]} R1h5 {[%clk 00:00:58]} {[%emt 00:00:10]} 42. Qf1 {[%clk
00:00:51]} {[%emt 00:00:26]} Rh3 {[%clk 00:00:55]} {[%emt 00:00:31]} 43. Qg2
{[%clk 00:00:39]} {[%emt 00:00:42]} R7h5 {[%clk 00:01:20]} {[%emt 00:00:34]} 44.
Qf1 {[%clk 00:00:32]} {[%emt 00:00:09]} Rg5 {[%clk 00:01:42]} {[%emt 00:00:16]}
45. f6+ {[%clk 00:00:46]} {[%emt 00:00:34]} Kd7 {[%clk 00:00:42]} {[%emt
00:01:02]} 46. Qg2 {[%clk 00:00:34]} {[%emt 00:00:43]} Rg6 {[%clk 00:00:58]}
{[%emt 00:00:17]} 47. Rd3 {[%clk 00:00:36]} {[%emt 00:00:26]} Rxf6+ {[%clk
00:01:17]} {[%emt 00:00:32]} 48. Ke1 {[%clk 00:01:05]} Rg6 {[%clk 00:00:51]}
{[%emt 00:00:35]} 49. Bf2 {[%clk 00:01:32]} {[%emt 00:00:25]} Rgh6 {[%clk
00:01:02]} {[%emt 00:00:15]} 50. Bg1 {[%clk 00:01:53]} Rh1 {[%clk 00:01:03]}
{[%emt 00:00:20]} 51. Kf2 {[%clk 00:02:14]} {[%emt 00:00:25]} Qg5 {[%clk
00:01:02]} {[%emt 00:00:18]} 52. Rf3 {[%clk 00:01:13]} {[%emt 00:01:32]} Ke7
{[%clk 00:01:05]} {[%emt 00:00:25]} 53. Rf5 {[%clk 00:01:08]} {[%emt 00:00:36]}
Qd2+ {[%clk 00:01:10]} {[%emt 00:00:49]} 54. Ne2 {[%clk 00:01:37]} R1h5 {[%clk
00:00:53]} {[%emt 00:00:22]} 55. Rxh5 {[%clk 00:01:26]} {[%emt 00:00:42]} Rxh5
{[%clk 00:01:19]} {[%emt 00:00:08]} 56. g4 {[%clk 00:01:50]} {[%emt 00:00:04]}
Rh6 {[%clk 00:01:28]} {[%emt 00:00:18]} 57. Kg3 {[%clk 00:00:58]} {[%emt
00:01:25]} Qxc2 {[%clk 00:01:06]} {[%emt 00:00:49]} 58. Be3 {[%clk 00:01:27]}
{[%emt 00:00:36]} Bxe4 {[%clk 00:00:37]} {[%emt 00:00:58]} 59. Qf2 {[%clk
00:01:56]} Rf6 {[%clk 00:01:05]} 60. Bg5 {[%clk 00:02:19]} Qd3+ {[%clk
00:00:49]} {[%emt 00:00:22]} 61. Kh4 {[%clk 00:00:50]} {[%emt 00:01:59]} Qf3
{[%clk 00:01:05]} {[%emt 00:00:33]} 62. Qa7+ {[%clk 00:00:32]} {[%emt
00:00:32]} Ke6 {[%clk 00:01:02]} {[%emt 00:00:31]} 63. Ng3 {[%clk 00:01:01]}
Qf2 {[%clk 00:00:41]} {[%emt 00:00:52]} 64. Qxf2 {[%clk 00:00:38]} {[%emt
00:00:53]} Rxf2 {[%clk 00:01:09]} {[%emt 00:00:18]} 65. Nxe4 {[%clk 00:01:03]}
Rxb2 {[%clk 00:01:07]} {[%emt 00:00:21]} 66. Bd2 {[%clk 00:01:04]} {[%emt
00:00:29]} f5 {[%clk 00:00:52]} {[%emt 00:00:45]} 67. gxf5+ {[%clk 00:01:33]}
{[%emt 00:00:19]} Kxf5 {[%clk 00:00:44]} {[%emt 00:00:20]} 68. Nxd6+ {[%clk
00:02:01]} {[%emt 00:00:39]} Ke6 {[%clk 00:00:52]} {[%emt 00:00:04]} 69. Ne4
{[%clk 00:02:30]} Kd5 {[%clk 00:00:57]} {[%emt 00:00:07]} 70. Bc3 {[%clk
00:02:45]} {[%emt 00:00:16]} Rc2 {[%clk 00:00:54]} {[%emt 00:00:47]} 71. Nf6+
{[%clk 00:03:11]} Ke6 {[%clk 00:00:44]} {[%emt 00:00:30]} 72. Ne4 {[%clk
00:03:39]} {[%emt 00:00:23]} Kf5 {[%clk 00:00:48]} {[%emt 00:00:12]} 73. Ng3+
{[%clk 00:03:53]} {[%emt 00:00:09]} Kf4 {[%clk 00:00:53]} {[%emt 00:00:36]} 74.
Nh5+ {[%clk 00:04:21]} Ke4 {[%clk 00:00:44]} {[%emt 00:00:30]} 75. Be1 {[%clk
00:04:50]} Kf3 {[%clk 00:00:48]} {[%emt 00:00:25]} 76. Kh3 {[%clk 00:04:20]}
{[%emt 00:01:00]} e4 {[%clk 00:01:05]} {[%emt 00:00:16]} 77. Ng3 {[%clk
00:03:52]} {[%emt 00:00:56]} Rc1 {[%clk 00:01:16]} {[%emt 00:00:25]} 78. Bd2
{[%clk 00:04:06]} {[%emt 00:00:09]} Rg1 {[%clk 00:01:15]} {[%emt 00:00:31]} 79.
Bf4 {[%clk 00:04:35]} {[%emt 00:00:34]} e3 {[%clk 00:01:02]} {[%emt 00:00:11]}
0-1

[Event "VII Open Internacional Quart de Poblet"]
[Site "Quart de Poblet, Spain"]
[Date "2019.08.08"]
[Round "5.8"]
[White "Galvan Cipriani, Viviana"]
[Black "Martin Ayala, David"]
[Result "1-0"]
[TimeControl "90m +30s por jugada"]
[WhiteFideId "32041144"]
[BlackFideId "2247216"]
[WhiteElo "1941"]
[BlackElo "2109"]

1. c4 {[%clk 01:30:58]} {[%emt 00:00:06]} Nf6 {[%clk 01:30:24]} {[%emt
00:00:57]} 2. Nc3 {[%clk 01:31:14]} {[%emt 00:00:12]} g6 {[%clk 01:29:59]}
{[%emt 00:00:49]} 3. g3 {[%clk 01:31:23]} {[%emt 00:00:05]} Bg7 {[%clk
01:30:05]} {[%emt 00:00:23]} 4. Bg2 {[%clk 01:31:44]} {[%emt 00:00:34]} O-O
{[%clk 01:29:39]} {[%emt 00:00:31]} 5. e4 {[%clk 01:32:06]} {[%emt 00:00:33]}
e5 {[%clk 01:29:16]} {[%emt 00:00:29]} 6. Nge2 {[%clk 01:32:21]} {[%emt
00:00:17]} d6 {[%clk 01:29:19]} {[%emt 00:00:26]} 7. O-O {[%clk 01:32:31]}
{[%emt 00:00:27]} c6 {[%clk 01:29:05]} {[%emt 00:00:36]} 8. d4 {[%clk
01:27:37]} {[%emt 00:05:25]} exd4 {[%clk 01:25:31]} {[%emt 00:04:03]} 9. Nxd4
{[%clk 01:27:55]} {[%emt 00:00:21]} Bg4 {[%emt 00:03:09]} 10. f3 {[%clk
01:21:30]} {[%emt 00:04:12]} Bc8 {[%clk 01:24:31]} {[%emt 00:01:26]} 11. Be3
{[%emt 00:02:08]} Qe7 {[%emt 00:01:22]} 12. Nde2 {[%clk 01:18:15]} {[%emt
00:02:04]} Be6 {[%clk 01:23:42]} {[%emt 00:00:27]} 13. b3 {[%emt 00:01:08]} Na6
{[%emt 00:01:44]} 14. Qd2 {[%emt 00:02:32]} Rfd8 {[%emt 00:01:04]} 15. Rad1
{[%emt 00:01:01]} d5 {[%clk 01:19:36]} {[%emt 00:00:03]} 16. cxd5 {[%clk
01:16:34]} {[%emt 00:01:45]} cxd5 {[%clk 01:19:37]} {[%emt 00:00:41]} 17. e5
{[%clk 01:16:49]} {[%emt 00:00:15]} Nd7 {[%clk 01:19:40]} {[%emt 00:00:15]} 18.
f4 {[%clk 01:17:02]} {[%emt 00:00:43]} Nb6 {[%clk 01:17:30]} {[%emt 00:02:13]}
19. Nd4 {[%clk 00:59:42]} {[%emt 00:18:31]} Bg4 {[%clk 01:09:54]} {[%emt
00:07:54]} 20. Rde1 {[%clk 00:57:58]} {[%emt 00:01:46]} f6 {[%clk 01:05:11]}
{[%emt 00:05:31]} 21. h3 {[%clk 00:55:52]} {[%emt 00:02:18]} fxe5 {[%clk
01:05:01]} {[%emt 00:00:43]} 22. fxe5 {[%clk 00:55:55]} {[%emt 00:00:23]} Qxe5
{[%clk 00:57:28]} {[%emt 00:08:09]} 23. hxg4 {[%clk 00:55:01]} {[%emt
00:01:21]} Qxg3 {[%clk 00:57:47]} {[%emt 00:00:14]} 24. Bf4 {[%clk 00:50:13]}
{[%emt 00:05:12]} Qxg4 {[%clk 00:57:37]} {[%emt 00:00:41]} 25. Ne6 {[%clk
00:50:28]} {[%emt 00:00:34]} Rd7 {[%clk 00:52:24]} {[%emt 00:05:24]} 26. Nxg7
{[%clk 00:50:43]} {[%emt 00:00:23]} Kxg7 {[%clk 00:52:06]} {[%emt 00:00:44]} 27.
Be5+ {[%clk 00:49:06]} {[%emt 00:02:02]} Kg8 {[%clk 00:51:39]} {[%emt
00:00:57]} 28. Rf4 {[%clk 00:48:26]} {[%emt 00:01:23]} Qe6 {[%clk 00:50:01]}
{[%emt 00:02:18]} 29. Bf6 {[%clk 00:48:11]} {[%emt 00:00:22]} Qc6 {[%clk
00:50:02]} {[%emt 00:00:28]} 30. Bh3 {[%clk 00:48:10]} {[%emt 00:00:33]} Rd6
{[%clk 00:48:54]} {[%emt 00:01:36]} 31. Be7 {[%clk 00:48:24]} {[%emt 00:00:18]}
Nc5 {[%clk 00:47:05]} {[%emt 00:02:16]} 32. Qf2 {[%clk 00:43:24]} {[%emt
00:05:30]} Nd3 {[%clk 00:45:49]} {[%emt 00:01:47]} 33. Rf8+ {[%clk 00:43:14]}
{[%emt 00:01:17]} Kg7 {[%clk 00:46:02]} {[%emt 00:00:11]} 34. Qd4+ {[%clk
00:39:10]} {[%emt 00:04:02]} Kh6 {[%clk 00:45:56]} {[%emt 00:00:37]} 35. Qh4+
{[%clk 00:32:37]} {[%emt 00:07:05]} Kg7 {[%clk 00:45:52]} {[%emt 00:00:32]} 36.
Rf7+ {[%clk 00:22:55]} {[%emt 00:10:14]} 1-0

[Event "VII Open Internacional Quart de Poblet"]
[Site "Quart de Poblet, Spain"]
[Date "2019.08.08"]
[Round "5.9"]
[White "Cebolla Ruiz, Anna"]
[Black "Marques Montolio, Luis"]
[Result "0-1"]
[TimeControl "90m +30s por jugada"]
[WhiteFideId "54532183"]
[BlackFideId "22244450"]
[WhiteElo "1209"]
[BlackElo "1632"]

1. d4 {[%clk 01:30:56]} {[%emt 00:00:03]} d5 {[%clk 01:30:57]} {[%emt
00:00:04]} 2. c4 {[%clk 01:31:07]} {[%emt 00:00:19]} c6 {[%clk 01:31:22]}
{[%emt 00:00:05]} 3. Nc3 {[%clk 01:31:12]} {[%emt 00:00:25]} Nf6 {[%clk
01:31:43]} {[%emt 00:00:08]} 4. Nf3 {[%clk 01:30:57]} {[%emt 00:00:45]} a6
{[%clk 01:32:07]} {[%emt 00:00:07]} 5. Bg5 {[%clk 01:30:58]} {[%emt 00:00:29]}
dxc4 {[%clk 01:32:20]} {[%emt 00:00:17]} 6. a4 {[%clk 01:28:45]} {[%emt
00:02:43]} Nd5 {[%clk 01:32:45]} {[%emt 00:00:05]} 7. e4 {[%clk 01:25:33]}
{[%emt 00:03:41]} Nxc3 {[%clk 01:32:54]} {[%emt 00:00:20]} 8. bxc3 {[%clk
01:25:16]} {[%emt 00:00:48]} b5 {[%clk 01:32:33]} {[%emt 00:00:52]} 9. d5
{[%clk 01:24:30]} {[%emt 00:01:16]} Bb7 {[%clk 01:32:14]} {[%emt 00:00:48]} 10.
dxc6 {[%clk 01:23:38]} {[%emt 00:01:23]} Bxc6 {[%clk 01:32:06]} {[%emt
00:00:38]} 11. Qxd8+ {[%clk 01:23:29]} {[%emt 00:00:39]} Kxd8 {[%clk 01:32:29]}
{[%emt 00:00:07]} 12. Ne5 {[%clk 01:23:24]} {[%emt 00:00:34]} Bxe4 {[%clk
01:31:48]} {[%emt 00:01:12]} 13. Nxf7+ {[%clk 01:23:10]} {[%emt 00:00:44]} Ke8
{[%clk 01:31:52]} {[%emt 00:00:27]} 14. Nxh8 {[%clk 01:23:14]} {[%emt
00:00:25]} Bc6 {[%clk 01:31:18]} {[%emt 00:01:04]} 15. axb5 {[%clk 01:21:01]}
{[%emt 00:02:43]} Bxb5 {[%clk 01:31:38]} {[%emt 00:00:09]} 16. Rd1 {[%clk
01:20:51]} {[%emt 00:00:39]} g6 {[%clk 01:31:56]} {[%emt 00:00:13]} 17. Kd2
{[%clk 01:15:02]} {[%emt 00:06:19]} Nc6 {[%clk 01:30:40]} {[%emt 00:01:47]} 18.
g3 {[%clk 01:13:27]} {[%emt 00:02:04]} Ne5 {[%clk 01:29:48]} {[%emt 00:01:23]}
19. Bg2 {[%clk 01:12:00]} {[%emt 00:01:57]} Ra7 {[%clk 01:29:19]} {[%emt
00:01:00]} 20. Bf4 {[%clk 01:08:38]} {[%emt 00:03:51]} Nd3 {[%clk 01:29:10]}
{[%emt 00:00:39]} 21. Ke3 {[%clk 01:06:26]} {[%emt 00:02:41]} Bg7 {[%clk
01:29:18]} {[%emt 00:00:23]} 22. Nxg6 {[%clk 01:02:54]} {[%emt 00:04:02]} hxg6
{[%clk 01:29:34]} {[%emt 00:00:13]} 23. Be4 {[%clk 01:01:09]} {[%emt 00:02:16]}
Kf7 {[%clk 01:28:00]} {[%emt 00:02:04]} 24. Bxd3 {[%clk 00:59:05]} {[%emt
00:02:34]} cxd3 {[%clk 01:28:17]} {[%emt 00:00:13]} 25. Rc1 {[%clk 00:59:07]}
{[%emt 00:00:27]} Rd7 {[%clk 01:28:15]} {[%emt 00:00:34]} 26. Rhd1 {[%clk
00:59:18]} {[%emt 00:00:18]} Bc4 {[%clk 01:27:09]} {[%emt 00:01:36]} 27. Kd2
{[%clk 00:50:21]} {[%emt 00:09:27]} a5 {[%clk 01:25:24]} {[%emt 00:02:16]} 28.
Ra1 {[%clk 00:46:38]} {[%emt 00:04:13]} Bb3 {[%clk 01:25:08]} {[%emt 00:00:46]}
29. Re1 {[%clk 00:45:02]} {[%emt 00:02:04]} a4 {[%clk 01:24:57]} {[%emt
00:00:43]} 30. Ra3 {[%clk 00:36:35]} {[%emt 00:08:57]} Rd5 {[%clk 01:23:05]}
{[%emt 00:02:22]} 31. c4 {[%clk 00:35:10]} {[%emt 00:01:55]} Rd4 {[%clk
01:22:11]} {[%emt 00:01:24]} 32. Rc1 {[%clk 00:34:36]} {[%emt 00:01:04]} Bc2
{[%clk 01:21:33]} {[%emt 00:01:08]} 33. Rc3 {[%clk 00:31:34]} {[%emt 00:03:32]}
Re4 {[%clk 01:20:18]} {[%emt 00:01:45]} 34. R3xc2 {[%clk 00:25:02]} {[%emt
00:07:02]} dxc2 {[%clk 01:19:33]} {[%emt 00:01:16]} 35. Rxc2 {[%clk 00:25:08]}
{[%emt 00:00:23]} a3 {[%clk 01:19:58]} {[%emt 00:00:06]} 36. c5 {[%clk
00:24:22]} {[%emt 00:01:15]} Bb2 {[%clk 01:18:50]} {[%emt 00:01:38]} 37. c6
{[%clk 00:23:32]} {[%emt 00:01:21]} Rd4+ {[%clk 01:18:37]} {[%emt 00:00:42]} 38.
Ke2 {[%clk 00:22:04]} {[%emt 00:01:57]} a2 {[%clk 01:18:12]} {[%emt 00:00:56]}
39. c7 {[%emt 00:02:39]} a1=Q {[%emt 00:00:05]} 40. c8=Q {[%emt 00:00:35]} Qd1+
{[%clk 01:17:09]} {[%emt 00:00:12]} 41. Ke3 {[%clk 00:20:25]} {[%emt 00:00:40]}
Qd3# {[%clk 01:17:20]} {[%emt 00:00:19]} 0-1